fUSD/lending_fUSD_20260111
["ID","MTS","AMOUNT","RATE_DAILY","PERIOD"]
[401324670,1768137753635,151.0,0.00027397,120]
[401324671,1768137762392,151.0,0.00027397,120]
[401324672,1768137770126,151.0,0.00027397,120]
[401324673,1768137777526,151.0,0.00027397,120]
[401324675,1768138021563,381.78479349,0.00015,2]
[401324676,1768138021585,1394.79520651,0.00015,2]
[401324678,1768138031798,151.0,0.00027397,120]
[401324679,1768138039370,151.0,0.00027397,120]
[401324680,1768138046728,151.0,0.00027397,120]
[401324681,1768138057296,151.0,0.00027397,120]
[401324682,1768138075096,206.0,0.00027397,120]
[401324695,1768138232024,-303.57222293,0.00015351,2]
[401324696,1768138232036,-259.49999994,0.00015351,2]
[401324697,1768138232083,-11.79777713,0.00015351,2]
[401324698,1768138232093,-344.72553104,0.00015376,2]
[401324699,1768138232104,-419.32446896,0.00015376,2]
[401324700,1768138232114,-1211.55222287,0.00015448,2]
[401324721,1768138238540,-433.06407852,0.00015448,2]
[401324724,1768138238555,-600.0,0.00015448,2]
[401324728,1768138238589,-288.14369861,0.00015448,2]
[401324730,1768138238599,-300.0,0.00015542,2]
[401324732,1768138238608,-1200.0,0.00015542,2]
[401324734,1768138238617,-57.99630139,0.00015543,2]
[401324887,1768138240180,-442.00369861,0.00015543,2]
[401324889,1768138240189,-500.0,0.00015543,2]
[401324891,1768138240198,-198.36071508,0.00015543,2]
[401324893,1768138240210,-301.63928492,0.00015543,2]
[401324894,1768138240219,-500.0,0.00015543,2]
[401324896,1768138240228,-509.03,0.00015543,2]
[401324898,1768138240237,-253.83349097,0.000159,2]
[401324901,1768138240248,-62.61995848,0.000159,2]
[401324903,1768138240257,-392.13504152,0.00015914,2]
[401324908,1768138240299,-658.85495848,0.00015914,2]
[401324910,1768138240308,-500.0,0.00015925,2]
[401324912,1768138240317,-151.0,0.00015937,2]
[401324914,1768138240327,-151.0,0.00015937,2]
[401324916,1768138240336,-150.0,0.00015947,2]
[401324918,1768138240345,-1295.18998636,0.00015982,2]
[401324920,1768138240355,-300.0,0.00015999,2]
[401324922,1768138240364,-500.0,0.00015999,2]
[401324924,1768138240373,-76185.55382351,0.00016,2]
[401324926,1768138240383,-211210.73084052,0.00016,4]
[401324928,1768138240392,-1800.0,0.00016082,2]
[401324930,1768138240402,-156.74678968,0.00016095,2]
[401324932,1768138240412,-1295.18998636,0.00016195,2]
[401324934,1768138240421,-150.0,0.000162,2]
[401324936,1768138240430,-150.0,0.000162,2]
[401324938,1768138240440,-150.0,0.000162,2]
[401324940,1768138240449,-236.87153921,0.000162,2]
[401324942,1768138240458,-150.0,0.000162,2]
[401324944,1768138240467,-150.25672752,0.000162,2]
[401324946,1768138240477,-150.0,0.000162,2]
[401324948,1768138240487,-178.176763,0.000162,2]
[401324950,1768138240497,-156.68286018,0.000162,2]
[401324952,1768138240506,-150.0,0.000162,2]
[401324954,1768138240516,-247.12115075,0.000162,2]
[401324956,1768138240526,-150.0,0.000162,2]
[401324958,1768138240536,-178500.16073254,0.000162,5]
[401324960,1768138240546,-500.0,0.00016262,2]
[401324962,1768138240555,-3110.71,0.00016262,2]
[401324964,1768138240564,-200.0,0.0001634,2]
[401324966,1768138240573,-500.0,0.00016356,2]
[401324968,1768138240582,-800.0,0.00016356,2]
[401324970,1768138240591,-150.0,0.00016356,2]
[401324972,1768138240602,-150.0,0.00016356,2]
[401324974,1768138240611,-150.0,0.000164,2]
[401324976,1768138240621,-1295.18998636,0.00016408,2]
[401324978,1768138240630,-14242.16,0.00016438,2]
[401324980,1768138240639,-800.0,0.00016438,2]
[401324982,1768138240647,-226.62,0.00016438,2]
[401324984,1768138240656,-219.92,0.00016548,2]
[401324986,1768138240665,-325.87,0.00016582,2]
[401324988,1768138240674,-156.55,0.00016582,2]
[401324990,1768138240683,-304.18,0.00016582,2]
[401324992,1768138240692,-150.0,0.000166,2]
[401324994,1768138240701,-359.70734215,0.000166,2]
[401324996,1768138240710,-1295.18998636,0.00016621,2]
[401324998,1768138240719,-150.0,0.0001665,2]
[401325001,1768138240728,-1770.43948317,0.00016713,2]
[401325003,1768138240738,-918.90149509,0.00016714,2]
[401325005,1768138240747,-1000.0,0.00016739,2]
[401325007,1768138240756,-179.51993635,0.00016741,2]
[401325009,1768138240765,-16744.67998272,0.00016777,2]
[401325011,1768138240774,-150.0,0.000168,2]
[401325013,1768138240783,-150.0,0.000168,2]
[401325014,1768138240792,-122477.98591905,0.000168,2]
[401325016,1768138240801,-1031.97148382,0.00016804,2]
[401325019,1768138240810,-425.86932009,0.00016813,2]
[401325021,1768138240819,-188.8356737,0.00016813,2]
[401325023,1768138240829,-500.0,0.00016813,2]
[401325024,1768138240838,-335.84358095,0.00016813,2]
[401325026,1768138240847,-1182.704,0.00016813,2]
[401325028,1768138240856,-165.213,0.00016813,2]
[401325030,1768138240865,-500.0,0.00016813,2]
[401325032,1768138240874,-500.0,0.00016813,2]
[401325034,1768138240883,-500.0,0.00016813,2]
[401325037,1768138240892,-500.0,0.00016813,2]
[401325039,1768138240902,-150.0,0.00016813,2]
[401325041,1768138240910,-150.0,0.00016813,2]
[401325042,1768138240920,-1000000.0,0.00016814,2]
[401325044,1768138240930,-1295.18998636,0.00016834,2]
[401325047,1768138240940,-1770.4394831,0.00016845,2]
[401325049,1768138240949,-1770.4394831,0.00016977,2]
[401325050,1768138240958,-150.0,0.00017,2]
[401325052,1768138240967,-160.0,0.00017,2]
[401325055,1768138240976,-420.0,0.00017,2]
[401325057,1768138240985,-1295.18998636,0.00017048,2]
[401325059,1768138240995,-500.0,0.00017073,2]
[401325061,1768138241005,-500.0,0.00017073,2]
[401325063,1768138241017,-1680.0,0.00017086,2]
[401325065,1768138241026,-322.6107,0.00017099,2]
[401325067,1768138241036,-553.64373807,0.00017099,2]
[401325069,1768138241045,-620.0,0.00017099,2]
[401325071,1768138241054,-542.8884043,0.00017099,2]
[401325073,1768138241063,-1852.42,0.00017099,2]
[401325075,1768138241072,-150.0,0.000171,2]
[401325077,1768138241081,-150.0,0.000171,2]
[401325079,1768138241090,-150.0,0.000171,2]
[401325081,1768138241099,-150.0,0.000171,2]
[401325082,1768138241108,-1770.4394831,0.00017109,2]
[401325085,1768138241117,-200.0,0.00017174,2]
[401325087,1768138241127,-150.0,0.000172,2]
[401325088,1768138241135,-1770.4394831,0.00017241,2]
[401325091,1768138241145,-1295.18998636,0.00017261,2]
[401325093,1768138241154,-764.05,0.00017298,2]
[401325095,1768138241163,-5374.0,0.00017337,2]
[401325097,1768138241172,-717.0,0.00017346,2]
[401325099,1768138241182,-1770.4394831,0.00017372,2]
[401325101,1768138241191,-150.0,0.00017378,2]
[401325103,1768138241201,-482.82,0.00017397,2]
[401325105,1768138241210,-150.0,0.000174,2]
[401325106,1768138241218,-150.0,0.000174,2]
[401325108,1768138241228,-171.49,0.00017404,2]
[401325111,1768138241237,-171.49,0.00017404,2]
[401325113,1768138241246,-171.49,0.00017404,2]
[401325114,1768138241256,-342.89,0.00017404,2]
[401325116,1768138241266,-171.49,0.00017404,2]
[401325118,1768138241275,-171.49,0.00017404,2]
[401325120,1768138241284,-179.23,0.00017404,2]
[401325123,1768138241293,-171.49,0.00017404,2]
[401325125,1768138241303,-179.23,0.00017404,2]
[401325126,1768138241312,-171.49,0.00017404,2]
[401325128,1768138241322,-179.23,0.00017404,2]
[401325130,1768138241332,-358.21,0.00017404,2]
[401325132,1768138241341,-467.05,0.00017404,2]
[401325134,1768138241351,-467.05,0.00017404,2]
[401325136,1768138241360,-467.05,0.00017404,2]
[401325138,1768138241369,-933.89,0.00017404,2]
[401325140,1768138241378,-467.05,0.00017404,2]
[401325142,1768138241387,-467.05,0.00017404,2]
[401325144,1768138241397,-467.05,0.00017404,2]
[401325146,1768138241406,-466.97,0.00017439,2]
[401325148,1768138241416,-1800.0,0.00017452,7]
[401325150,1768138241425,-1295.18998636,0.00017474,2]
[401325151,1768138241434,-2000.0,0.000175,2]
[401325152,1768138241443,-1601.60083457,0.000175,2]
[401325153,1768138241452,-1770.4394831,0.00017504,2]
[401325154,1768138241461,-150.0,0.0001755,2]
[401325155,1768138241469,-150.0,0.000176,2]
[401325156,1768138241478,-1000.0,0.00017621,2]
[401325157,1768138241487,-1000.0,0.00017621,2]
[401325158,1768138241495,-1770.4394831,0.00017636,2]
[401325159,1768138241504,-2188.27062992,0.0001764,2]
[401325160,1768138241513,-574.12855637,0.00017647,2]
[401325161,1768138241523,-1295.18998636,0.00017687,2]
[401325163,1768138241532,-1000.0,0.000177,2]
[401325165,1768138241541,-780.16040122,0.000177,2]
[401325167,1768138241550,-171.0,0.00017721,2]
[401325169,1768138241560,-171.0,0.00017723,2]
[401325171,1768138241569,-800.0,0.00017726,7]
[401325173,1768138241578,-1000.0,0.00017728,2]
[401325175,1768138241587,-1000.0,0.00017735,2]
[401325177,1768138241596,-1000.0,0.00017744,2]
[401325179,1768138241606,-1000.0,0.00017748,2]
[401325181,1768138241615,-1000.0,0.0001775,2]
[401325183,1768138241624,-1000.0,0.00017752,2]
[401325185,1768138241633,-1000.0,0.00017763,2]
[401325187,1768138241642,-1770.4394831,0.00017768,2]
[401325189,1768138241651,-1000.0,0.00017769,2]
[401325191,1768138241660,-1000.0,0.00017775,2]
[401325193,1768138241668,-616.50589084,0.00017794,2]
[401325195,1768138241677,-150.0,0.000178,2]
[401325197,1768138241687,-1000.0,0.000178,2]
[401325199,1768138241696,-14440.20798762,0.000178,2]
[401325201,1768138241705,-1000.0,0.000178,2]
[401325203,1768138241715,-150.13206296,0.000178,2]
[401325205,1768138241724,-1000.0,0.00017805,2]
[401325207,1768138241734,-1000.0,0.00017806,2]
[401325209,1768138241745,-717.0,0.00017806,2]
[401325211,1768138241754,-1000.0,0.00017807,2]
[401325213,1768138241764,-1000.0,0.0001781,2]
[401325215,1768138241773,-717.0,0.00017816,2]
[401325217,1768138241782,-1843.28908,0.0001782,2]
[401325219,1768138241792,-1843.28909,0.0001782,2]
[401325221,1768138241801,-2201.92484839,0.0001783,2]
[401325223,1768138241811,-1843.28909,0.0001783,2]
[401325225,1768138241820,-1000.0,0.00017838,2]
[401325227,1768138241829,-1000.0,0.00017844,2]
[401325229,1768138241839,-171.0,0.00017845,2]
[401325231,1768138241848,-1990.229,0.00017849,2]
[401325233,1768138241857,-1000.0,0.00017849,2]
[401325235,1768138241866,-150.13206295,0.0001785,2]
[401325237,1768138241875,-1000.0,0.00017851,2]
[401325239,1768138241884,-1000.0,0.00017852,2]
[401325241,1768138241893,-200.0,0.00017856,2]
[401325243,1768138241901,-1843.28908,0.0001786,2]
[401325245,1768138241910,-1000.0,0.00017871,2]
[401325247,1768138241920,-1843.28909,0.0001788,2]
[401325249,1768138241930,-1000.0,0.00017883,2]
[401325251,1768138241939,-1000.0,0.00017887,2]
[401325253,1768138241947,-25000.0,0.00017891,3]
[401325254,1768138241956,-1741.4494,0.000179,2]
[401325256,1768138241965,-1000.0,0.000179,2]
[401325258,1768138241975,-25000.0,0.000179,3]
[401325260,1768138241984,-10000.0,0.000179,2]
[401325262,1768138241993,-22054.87285308,0.000179,3]
[401325264,1768138242002,-250.07515938,0.000179,2]
[401325266,1768138242014,-250.07515938,0.000179,2]
[401325269,1768138242024,-250.07515938,0.000179,2]
[401325270,1768138242034,-250.07515938,0.000179,2]
[401325273,1768138242043,-250.07515938,0.000179,2]
[401325274,1768138242052,-250.07515938,0.000179,2]
[401325276,1768138242062,-250.07515938,0.000179,2]
[401325278,1768138242071,-250.07515938,0.000179,2]
[401325280,1768138242080,-250.07515938,0.000179,2]
[401325282,1768138242090,-1000.0,0.000179,2]
[401325284,1768138242099,-1770.4394831,0.000179,2]
[401325286,1768138242108,-1295.18998636,0.000179,2]
[401325288,1768138242117,-750.28,0.000179,2]
[401325290,1768138242126,-5719.4937703,0.000179,2]
[401325292,1768138242135,-150.13206295,0.000179,2]
[401325294,1768138242144,-2005.15405585,0.000179,2]
[401325296,1768138242153,-500.0,0.000179,2]
[401325298,1768138242162,-500.0,0.000179,2]
[401325300,1768138242171,-500.0,0.000179,2]
[401325302,1768138242181,-500.0,0.000179,2]
[401325304,1768138242190,-500.0,0.000179,2]
[401325306,1768138242199,-500.0,0.000179,2]
[401325308,1768138242209,-500.0,0.000179,2]
[401325310,1768138242218,-500.0,0.000179,2]
[401325312,1768138242227,-500.0,0.000179,2]
[401325314,1768138242236,-500.0,0.000179,2]
[401325317,1768138242245,-500.0,0.000179,2]
[401325319,1768138242255,-500.0,0.000179,2]
[401325320,1768138242264,-500.0,0.000179,2]
[401325322,1768138242274,-500.0,0.000179,2]
[401325325,1768138242285,-500.0,0.000179,2]
[401325327,1768138242296,-500.0,0.000179,2]
[401325329,1768138242306,-500.0,0.000179,2]
[401325361,1768138242600,-7344.0,0.000179,2]
[401325363,1768138242609,-1843.28908,0.0001791,2]
[401325365,1768138242618,-1000.0,0.00017911,2]
[401325367,1768138242627,-1000.0,0.00017913,2]
[401325369,1768138242636,-1000.0,0.00017918,2]
[401325371,1768138242645,-1000.0,0.00017919,2]
[401325373,1768138242654,-1000.0,0.00017922,2]
[401325375,1768138242663,-1000.0,0.00017929,2]
[401325377,1768138242672,-1000.0,0.00017938,2]
[401325379,1768138242681,-1000.0,0.00017938,2]
[401325381,1768138242690,-1000.0,0.00017941,2]
[401325383,1768138242699,-580.06004034,0.00017973,2]
[401325385,1768138242708,-500.0,0.00017973,2]
[401325387,1768138242717,-500.0,0.00017973,2]
[401325389,1768138242726,-500.0,0.00017973,2]
[401325391,1768138242735,-380.05360747,0.00017973,2]
[401325393,1768138242744,-500.0,0.00017973,2]
[401325395,1768138242753,-500.0,0.00017973,2]
[401325397,1768138242762,-498.39272947,0.00017973,2]
[401325399,1768138242771,-500.0,0.00017973,2]
[401325401,1768138242780,-500.0,0.00017973,2]
[401325404,1768138242791,-500.0,0.00017973,2]
[401325407,1768138242800,-500.0,0.00017973,2]
[401325410,1768138242809,-500.0,0.00017973,2]
[401325412,1768138242818,-500.0,0.00017973,2]
[401325414,1768138242828,-500.0,0.00017973,2]
[401325416,1768138242837,-500.0,0.00017973,2]
[401325418,1768138242845,-500.0,0.00017973,2]
[401325420,1768138242855,-500.0,0.00017973,2]
[401325422,1768138242864,-500.0,0.00017973,2]
[401325424,1768138242872,-500.0,0.00017973,2]
[401325426,1768138242882,-1000.0,0.00017981,2]
[401325428,1768138242891,-1000.0,0.0001799,2]
[401325430,1768138242900,-1031.97148382,0.0001799,2]
[401325432,1768138242908,-1031.97148382,0.0001799,2]
[401325434,1768138242917,-1000.0,0.00017996,2]
[401325436,1768138242927,-166.9455236,0.00017999,2]
[401325438,1768138242936,-21669.4385896,0.00017999,2]
[401325440,1768138242944,-1482.0666546,0.00017999,2]
[401325442,1768138242953,-300.0,0.00017999,2]
[401325444,1768138242962,-23005.8945671,0.00017999,2]
[401325446,1768138242971,-300.0,0.00017999,2]
[401325448,1768138242980,-2009.7251798,0.00017999,2]
[401325450,1768138242988,-646809.115338,0.00017999,2]
[401325452,1768138242997,-300.0,0.00017999,2]
[401325454,1768138243007,-4228.6737101,0.00017999,2]
[401325456,1768138243020,-174.1373823,0.00017999,2]
[401325458,1768138243029,-7629.798897,0.00017999,2]
[401325460,1768138243038,-437.58562247,0.00017999,2]
[401325462,1768138243049,-500.0,0.00017999,2]
[401325464,1768138243058,-500.0,0.00017999,2]
[401325466,1768138243067,-500.0,0.00017999,2]
[401325468,1768138243076,-500.0,0.00017999,2]
[401325469,1768138243084,-500.0,0.00017999,2]
[401325472,1768138243094,-500.0,0.00017999,2]
[401325473,1768138243103,-500.0,0.00017999,2]
[401325475,1768138243113,-500.0,0.00017999,2]
[401325478,1768138243122,-500.0,0.00017999,2]
[401325480,1768138243132,-395.65252229,0.00017999,2]
[401325481,1768138243141,-500.0,0.00017999,2]
[401325483,1768138243151,-1800.5018293,0.00017999,2]
[401325486,1768138243161,-500.0,0.00017999,2]
[401325487,1768138243171,-139442.200536,0.00017999,2]
[401325489,1768138243180,-300.0,0.00017999,2]
[401325491,1768138243190,-300.0,0.00017999,2]
[401325493,1768138243199,-6474.7929339,0.00017999,2]
[401325495,1768138243208,-300.0,0.00017999,2]
[401325498,1768138243218,-300.0,0.00017999,2]
[401325500,1768138243227,-548.49326873,0.00017999,2]
[401325502,1768138243238,-200.0,0.00018,2]
[401325504,1768138243247,-151.06129179,0.00018,2]
[401325506,1768138243256,-286.04821059,0.00018,2]
[401325508,1768138243266,-154.34791437,0.00018,2]
[401325510,1768138243274,-274.86810546,0.00018,2]
[401325512,1768138243283,-164.64727615,0.00018,2]
[401325514,1768138243292,-156.26952807,0.00018,2]
[401325516,1768138243301,-244.97032636,0.00018,2]
[401325518,1768138243310,-168199.72850559,0.00018,2]
[401325520,1768138243320,-1000.0,0.00018,2]
[401325522,1768138243329,-1000.0,0.00018,2]
[401325524,1768138243339,-1000.0,0.00018,2]
[401325526,1768138243348,-1000.0,0.00018,2]
[401325528,1768138243357,-1000.0,0.00018,2]
[401325530,1768138243366,-1000.0,0.00018,2]
[401325532,1768138243375,-1000.0,0.00018,2]
[401325534,1768138243383,-1000.0,0.00018,2]
[401325536,1768138243392,-1000.0,0.00018,2]
[401325538,1768138243401,-1000.0,0.00018,2]
[401325540,1768138243409,-1000.0,0.00018,2]
[401325542,1768138243418,-1000.0,0.00018,2]
[401325544,1768138243427,-1000.0,0.00018,2]
[401325546,1768138243436,-1000.0,0.00018,2]
[401325547,1768138243445,-1000.0,0.00018,2]
[401325549,1768138243454,-1000.0,0.00018,2]
[401325551,1768138243463,-1000.0,0.00018,2]
[401325553,1768138243471,-1000.0,0.00018,2]
[401325555,1768138243481,-1000.0,0.00018,2]
[401325557,1768138243491,-326.69839869,0.00018,2]
[401325559,1768138243499,-908281.58115813,0.00018,2]
[401325563,1768138243523,-3853.94294921,0.00018,2]
[401325688,1768138244761,-177.16136204,0.00016735,2]
[401325690,1768138244771,-133.69863796,0.00017404,2]
[401325714,1768138244984,-37.79136204,0.00017404,2]
[401325716,1768138244993,-294.7401385,0.000179,2]
[401325718,1768138245003,-156.74678967,0.000179,2]
[401325720,1768138245014,-68.44553621,0.00018,2]
[401325843,1768138246193,-3361.68501137,0.00018,2]
[401325845,1768138246205,-1441.80697188,0.00018,2]
[401325847,1768138246216,-10943.0176479,0.00018,2]
[401325849,1768138246227,-988.49382925,0.00018,2]
[401325851,1768138246239,-4626.78912661,0.00018,2]
[401325853,1768138246250,-1236.613284,0.00018,2]
[401325856,1768138246262,-6916.8397409,0.00018,2]
[401325858,1768138246273,-593.5775,0.00018,2]
[401325860,1768138246284,-641.8065,0.00018,2]
[401325862,1768138246295,-401.35999998,0.00018,2]
[401326414,1768139043777,178.0730736,0.00027397,120]
[401326425,1768139432408,-482.13,0.00015581,2]
[401326426,1768139432432,-2565.620662,0.00015581,2]
[401326427,1768139432442,-1200.0,0.00015581,2]
[401326428,1768139432452,-165.213,0.00015582,2]
[401326430,1768139432462,-23.964338,0.00015582,2]
[401326432,1768139432475,-414.9723606,0.00015582,2]
[401326433,1768139432484,-123.42620027,0.00015582,2]
[401326434,1768139432568,-540.54142778,0.00015582,2]
[401326435,1768139432580,-518.73637195,0.00015582,2]
[401326436,1768139432590,-156.74678968,0.0001579,2]
[401326437,1768139432600,-111.79577759,0.00015799,2]
[401326438,1768139432612,-38.20422241,0.00015799,2]
[401326439,1768139432625,-500.0,0.00015799,2]
[401326440,1768139432635,-101.63611056,0.00015799,2]
[401326441,1768139432647,-87.19956314,0.00015799,2]
[401326442,1768139432656,-361.34245117,0.00015799,2]
[401326443,1768139432686,-129.72457499,0.00015799,2]
[401326444,1768139432697,-918.90149509,0.000158,2]
[401326445,1768139432709,-179.51993635,0.000158,2]
[401326446,1768139432719,-81.54163723,0.000158,2]
[401326447,1768139432731,-827.08473548,0.000158,2]
[401326448,1768139432754,-386.56361365,0.000158,2]
[401326449,1768139432765,-1770.43948317,0.000158,2]
[401326450,1768139432774,-232.9461884,0.000158,2]
[401326451,1768139438287,-2267.0538116,0.000158,2]
[401326452,1768139438298,-77.60691173,0.000158,2]
[401326453,1768139438309,-392.59463394,0.000158,2]
[401326454,1768139438321,-471.87366345,0.000158,2]
[401326455,1768139438343,-310.71,0.000158,2]
[401326456,1768139438399,-5972.68705834,0.000158,2]
[401326457,1768139438411,-628.62191005,0.000158,2]
[401326458,1768139438422,-670.10000021,0.000158,2]
[401326663,1768139440566,-3816.26585088,0.000158,2]
[401326665,1768139440577,-15326.61639768,0.000158,2]
[401326669,1768139440605,-22989.30025605,0.000158,2]
[401326671,1768139440616,-4532.30000001,0.000158,2]
[401326673,1768139440631,-3030.275,0.000158,2]
[401326676,1768139440646,-303.94,0.000158,2]
[401326678,1768139440657,-453.5868609,0.000158,2]
[401326680,1768139440670,-360.11324534,0.000158,2]
[401326683,1768139440681,-447.1571751,0.000158,2]
[401326685,1768139440693,-471.13398646,0.000158,2]
[401326687,1768139440704,-3013.09883196,0.000158,2]
[401326689,1768139440715,-936732.0182179,0.000158,2]
[401326691,1768139440724,-188.46718757,0.0001589,2]
[401326693,1768139440733,-300.0,0.00015898,2]
[401326695,1768139440742,-500.0,0.00015899,2]
[401326697,1768139440751,-500.0,0.00015899,2]
[401326699,1768139440760,-500.0,0.00015899,2]
[401326701,1768139440769,-500.0,0.00015899,2]
[401326703,1768139440779,-1654.85,0.00015899,2]
[401326705,1768139440787,-1000.0,0.000159,2]
[401326707,1768139440796,-151.0,0.00015946,2]
[401326709,1768139440805,-151.0,0.00015946,2]
[401326711,1768139440815,-151.0,0.00015948,2]
[401326713,1768139440823,-151.0,0.00015948,2]
[401326715,1768139440833,-437.58562247,0.00015999,2]
[401326717,1768139440842,-500.0,0.00015999,2]
[401326719,1768139440851,-500.0,0.00015999,2]
[401326721,1768139440860,-500.0,0.00015999,2]
[401326723,1768139440869,-1295.18998636,0.00016033,2]
[401326725,1768139440878,-1770.4394831,0.00016033,2]
[401326727,1768139440887,-1800.0,0.00016082,2]
[401326729,1768139440896,-1000.0,0.000161,2]
[401326731,1768139440905,-299.99,0.00016116,4]
[401326733,1768139440914,-3110.71,0.00016116,2]
[401326735,1768139440923,-1654.85,0.00016173,2]
[401326737,1768139440933,-150.0,0.000162,2]
[401326739,1768139440942,-150.0,0.000162,2]
[401326741,1768139440951,-150.0,0.000162,2]
[401326743,1768139440960,-150.0,0.000162,2]
[401326745,1768139440970,-150.25672752,0.000162,2]
[401326747,1768139440979,-236.87153921,0.000162,2]
[401326749,1768139440989,-150.0,0.000162,2]
[401326751,1768139440998,-156.68286018,0.000162,2]
[401326753,1768139441010,-150.0,0.000162,2]
[401326755,1768139441019,-178.176763,0.000162,2]
[401326757,1768139441029,-150.0,0.000162,2]
[401326759,1768139441038,-247.12115075,0.000162,2]
[401326761,1768139441047,-3240.0,0.00016255,2]
[401326763,1768139441056,-1295.18998636,0.00016267,2]
[401326765,1768139441066,-1770.4394831,0.00016267,2]
[401326767,1768139441076,-800.0,0.00016356,2]
[401326769,1768139441085,-500.0,0.00016356,2]
[401326771,1768139441095,-150.0,0.000164,2]
[401326773,1768139441104,-425.86932009,0.00016438,2]
[401326775,1768139441113,-600.0,0.00016438,2]
[401326777,1768139441122,-800.0,0.00016438,2]
[401326779,1768139441131,-1654.85,0.00016447,2]
[401326781,1768139441140,-2000.0,0.000165,2]
[401326783,1768139441151,-1000.0,0.000165,2]
[401326785,1768139441163,-1295.18998636,0.000165,2]
[401326787,1768139441172,-1770.4394831,0.000165,2]
[401326789,1768139441181,-200.0,0.00016588,2]
[401326791,1768139441192,-150.0,0.000166,2]
[401326793,1768139441201,-176.47,0.00016647,2]
[401326795,1768139441210,-150.0,0.0001665,2]
[401326797,1768139441219,-166.66,0.00016689,2]
[401326799,1768139441229,-219.92,0.00016691,2]
[401326801,1768139441238,-1000.0,0.00016693,2]
[401326803,1768139441247,-158.73,0.00016712,2]
[401326805,1768139441256,-1654.85,0.00016721,2]
[401326807,1768139441265,-1295.18998636,0.00016733,2]
[401326809,1768139441274,-1770.4394831,0.00016733,2]
[401326810,1768139441283,-150.0,0.000168,2]
[401326812,1768139441292,-150.0,0.000168,2]
[401326814,1768139441302,-174.1373823,0.00016812,2]
[401326816,1768139441311,-2326.0,0.00016953,2]
[401326818,1768139441320,-1295.18998636,0.00016967,2]
[401326820,1768139441330,-1770.4394831,0.00016967,2]
[401326822,1768139441339,-50395.02,0.00016986,2]
[401326824,1768139441349,-600.0,0.00016986,2]
[401326826,1768139441358,-1654.85,0.00016995,2]
[401326828,1768139441368,-150.0,0.00017,2]
[401326830,1768139441377,-150.0,0.00017027,2]
[401326832,1768139441387,-482.82,0.00017041,2]
[401326834,1768139441396,-500.0,0.00017073,2]
[401326836,1768139441406,-500.0,0.00017073,2]
[401326838,1768139441416,-322.6107,0.00017099,2]
[401326840,1768139441426,-620.0,0.00017099,2]
[401326841,1768139441435,-542.8884043,0.00017099,2]
[401326842,1768139441446,-553.64373807,0.00017099,2]
[401326843,1768139441456,-150.0,0.000171,2]
[401326844,1768139441465,-150.0,0.000171,2]
[401326845,1768139441475,-150.0,0.000171,2]
[401326846,1768139441484,-150.0,0.000171,2]
[401326847,1768139441494,-1000.0,0.000171,3]
[401326848,1768139441503,-1680.0,0.00017128,2]
[401326849,1768139441512,-1862.70122449,0.00017139,2]
[401326850,1768139441522,-300.0,0.0001714,2]
[401326851,1768139441531,-300.0,0.0001714,2]
[401326853,1768139441541,-2326.0,0.0001715,2]
[401326855,1768139441550,-171.49,0.00017178,2]
[401326857,1768139441559,-467.05,0.00017178,2]